bitfinex/quotes_BTCUSD_20251104
["timestamp","ask_amount","ask_price","bid_price","bid_amount"]
[1762287725113,0.20994854,100030.0,100000.0,0.00028]
[1762287725339,0.19995154,100030.0,100000.0,0.00189271]
[1762287725510,0.20994854,100030.0,100000.0,0.00046589]
[1762287725664,0.19994288,100030.0,100000.0,0.00046589]
[1762287725865,0.19996062,100020.0,100000.0,0.00046589]
[1762287726083,0.19994233,100030.0,100000.0,0.00046589]
[1762287726279,0.1999401,100030.0,100010.0,0.08955669]
[1762287726480,0.19994075,100030.0,100000.0,0.00046589]
[1762287726674,0.19996117,100020.0,100000.0,0.00046589]
[1762287726951,0.20993879,100030.0,100000.0,0.00046589]
[1762287727226,0.20993711,100030.0,100000.0,0.00046589]
[1762287727464,0.19996047,100020.0,100000.0,0.00046589]
[1762287727678,0.19998,100010.0,100000.0,0.00046589]
[1762287727871,0.24984088,100010.0,100000.0,0.00046589]
[1762287728089,0.25057637,100010.0,100000.0,0.00046589]
[1762287728309,0.24984088,100010.0,100000.0,0.00046589]
[1762287728535,0.200038,99981.0,99980.0,0.00107578]
[1762287728737,0.200038,99981.0,99909.0,0.05323445]
[1762287728982,0.200038,99981.0,99898.0,0.07087293]
[1762287728983,0.20008203,99959.0,99958.0,0.00068688]
[1762287729156,0.05986288,99980.0,99958.0,0.00068688]
[1762287729457,0.20004801,99976.0,99958.0,0.00068688]
[1762287729603,0.20007803,99961.0,99958.0,0.00068688]
[1762287730017,0.20007803,99961.0,99889.0,0.07087293]
[1762287730018,0.04986088,99950.0,99891.0,0.05323445]
[1762287730245,0.20015628,99922.0,99892.0,0.08955669]
[1762287730478,0.20015048,99925.0,99892.0,0.08955669]
[1762287730479,0.010006,99940.0,99893.0,0.08955669]
[1762287730642,0.010007,99930.0,99894.0,0.0094175]
[1762287730847,0.010008,99920.0,99894.0,0.0094175]
[1762287731149,0.010007,99930.0,99891.0,0.00014578]
[1762287731352,0.21332033,99923.0,99891.0,0.00014578]
[1762287731588,0.010007,99930.0,99891.0,0.00014578]
[1762287731589,0.05986888,99920.0,99891.0,0.00014578]
[1762287731794,0.010008,99920.0,99891.0,0.00014578]
[1762287731996,0.07158717,99930.0,99891.0,0.00014578]
[1762287731997,0.01171929,99930.0,99891.0,0.00014578]
[1762287732195,0.05986488,99960.0,99892.0,0.08955669]
[1762287732412,0.010007,99930.0,99891.0,0.00014578]
[1762287732752,0.02183618,99929.0,99891.0,0.00014578]
[1762287732951,0.010007,99930.0,99891.0,0.00014578]
[1762287733288,0.2001461,99927.0,99891.0,0.00014578]
[1762287733490,0.05986888,99920.0,99891.0,0.00014578]
[1762287733694,0.20017953,99911.0,99891.0,0.00014578]
[1762287733901,0.05986788,99930.0,99891.0,0.00014578]
[1762287734097,0.02697824,99910.0,99891.0,0.00014578]
[1762287734299,0.07603407,99920.0,99891.0,0.00014578]
[1762287734727,0.02690034,99921.0,99891.0,0.00014578]
[1762287734944,0.0261628,99919.0,99891.0,0.00014578]
[1762287735146,0.07199904,99940.0,99892.0,0.08955669]
[1762287735350,0.01213216,99940.0,99892.0,0.08955669]
[1762287735678,0.05986488,99960.0,99892.0,0.08955669]
[1762287736099,0.010005,99950.0,99892.0,0.08955669]
[1762287736550,0.20013666,99932.0,99893.0,0.08955669]
[1762287736716,0.010007,99930.0,99891.0,0.00014578]
[1762287736921,0.20010956,99946.0,99892.0,0.08955669]
[1762287737126,0.2001155,99943.0,99893.0,0.01101489]
[1762287737385,0.010005,99950.0,99893.0,0.01101489]
[1762287737596,0.20013343,99934.0,99893.0,0.01101489]
[1762287737827,0.010006,99940.0,99895.0,0.08955669]
[1762287738000,0.20012207,99939.0,99896.0,0.01153133]
[1762287738201,0.010006,99940.0,99891.0,0.00014578]
[1762287738202,0.010008,99920.0,99891.0,0.00014578]
[1762287738466,0.20012971,99936.0,99891.0,0.00014578]
[1762287738679,0.20016605,99918.0,99891.0,0.00014578]
[1762287738867,0.010007,99930.0,99891.0,0.00014578]
[1762287739103,0.02681596,99944.0,99891.0,0.00014578]
[1762287739104,0.04986088,99950.0,99907.0,0.28974201]
[1762287739273,0.01822561,99949.0,99908.0,0.01220512]
[1762287739477,0.02214903,99960.0,99909.0,0.08955669]
[1762287739478,0.01822561,99948.0,99909.0,0.08955669]
[1762287739627,0.01822561,99948.0,99908.0,0.01220512]
[1762287739628,0.010006,99940.0,99892.0,0.08955669]
[1762287739829,0.010007,99930.0,99892.0,0.08955669]
[1762287740037,0.010005,99950.0,99892.0,0.08955669]
[1762287740038,0.20008692,99957.0,99907.0,0.08955669]
[1762287740231,0.06200591,99960.0,99919.0,0.00079269]
[1762287740428,0.06200591,99960.0,99907.0,0.08955669]
[1762287740429,0.01214503,99960.0,99920.0,0.010008]
[1762287740652,0.01,100000.0,99921.0,0.14009049]
[1762287740874,0.01,100000.0,99940.0,0.04947]
[1762287741027,0.200042,99979.0,99910.0,0.03618228]
[1762287741243,0.20007354,99964.0,99910.0,0.059479]
[1762287741444,0.20006688,99967.0,99913.0,0.20017346]
[1762287741652,0.010006,99940.0,99910.0,0.04947]
[1762287742048,0.010004,99960.0,99910.0,0.00014578]
[1762287742252,0.010006,99940.0,99910.0,0.00014578]
[1762287742518,0.05986388,99970.0,99910.0,0.00014578]
[1762287742729,0.21008521,99960.0,99922.0,0.08955669]
[1762287742994,0.20009026,99955.0,99923.0,0.10036494]
[1762287743214,0.010006,99940.0,99910.0,0.00014578]
[1762287743422,0.20014936,99926.0,99910.0,0.00014578]
[1762287743636,0.20013208,99934.0,99910.0,0.00014578]
[1762287743848,0.20012207,99939.0,99910.0,0.00014578]
[1762287744068,0.11068887,99940.0,99910.0,0.00014578]
[1762287744323,0.20012407,99938.0,99910.0,0.00014578]
[1762287744544,0.05986688,99940.0,99910.0,0.00014578]
[1762287744759,0.20014937,99926.0,99910.0,0.00014578]
[1762287744968,0.20017635,99912.0,99910.0,0.00014578]
[1762287745808,0.00654357,99911.0,99910.0,0.00014578]
[1762287746029,0.22635212,99912.0,99910.0,0.00014578]
[1762287746030,0.20017635,99912.0,99910.0,0.00014578]
[1762287746257,0.20017635,99912.0,99910.0,0.00116869]
[1762287746476,0.20023828,99881.0,99880.0,0.0002]
[1762287746696,0.05619127,99910.0,99880.0,0.00034496]
[1762287746697,0.20023186,99885.0,99880.0,0.00034496]
[1762287746909,0.20023828,99881.0,99880.0,0.00034496]
[1762287747046,0.20022203,99890.0,99880.0,0.00034496]
[1762287747250,0.010009,99910.0,99880.0,0.00034496]
[1762287747477,0.05986888,99920.0,99880.0,0.00034496]
[1762287747689,0.010007,99930.0,99881.0,0.08955669]
[1762287747859,0.010007,99930.0,99880.0,0.00034496]
[1762287747860,0.010008,99920.0,99880.0,0.00034496]
[1762287748071,0.05986688,99940.0,99881.0,0.08955669]
[1762287748272,0.04986088,99940.0,99881.0,0.08955669]
[1762287748471,0.010005,99950.0,99881.0,0.08955669]
[1762287748472,0.20013948,99931.0,99881.0,0.08955669]
[1762287748766,0.05986588,99950.0,99881.0,0.08955669]
[1762287748767,0.010008,99920.0,99881.0,0.08955669]
[1762287748964,0.010008,99920.0,99880.0,0.00034496]
[1762287749180,0.05986788,99930.0,99881.0,0.08955669]
[1762287749435,0.05986788,99930.0,99882.0,0.08955669]
[1762287749436,0.010007,99930.0,99882.0,0.08955669]
[1762287749668,0.20010618,99947.0,99896.0,0.20020695]
[1762287749881,0.20011426,99943.0,99897.0,0.00095217]
[1762287750097,0.05986488,99960.0,99897.0,0.00095217]
[1762287750334,0.010007,99930.0,99882.0,0.08955669]
[1762287750547,0.010004,99960.0,99890.0,0.01001101]
[1762287750548,0.0261763,99959.0,99890.0,0.01001101]
[1762287750749,0.010006,99940.0,99904.0,0.08955669]
[1762287750955,0.20016342,99919.0,99882.0,0.08955669]
[1762287751169,0.2001441,99928.0,99882.0,0.08955669]
[1762287751374,0.010007,99930.0,99882.0,0.08955669]
[1762287751375,0.20014705,99927.0,99882.0,0.08955669]
[1762287751599,0.010006,99940.0,99882.0,0.08959669]
[1762287751821,0.03008116,105440.0,99882.0,0.08959669]
[1762287751822,0.05986488,99960.0,99912.0,0.08955669]
[1762287752104,0.010002,99980.0,99912.0,0.08955669]
[1762287752105,0.04986088,99970.0,99912.0,0.08955669]
[1762287752325,0.2000916,99955.0,99912.0,0.08955669]
[1762287752551,0.010004,99960.0,99920.0,8.76e-05]
[1762287753002,0.20010112,99950.0,99920.0,8.76e-05]
[1762287753249,0.01014973,99960.0,99920.0,8.76e-05]
[1762287753485,0.010005,99950.0,99920.0,8.76e-05]
[1762287753956,0.00881869,99949.0,99920.0,8.76e-05]
[1762287754195,0.20015522,99924.0,99920.0,8.76e-05]
[1762287754432,0.20015498,99923.0,99920.0,8.76e-05]
[1762287755827,0.04986088,99940.0,99920.0,0.0001276]
[1762287756061,0.20015492,99923.0,99920.0,0.0001276]
[1762287756288,0.20015492,99923.0,99920.0,0.0001676]
[1762287756540,0.20015812,99921.0,99920.0,0.0002076]
[1762287756776,0.20015812,99921.0,99882.0,0.0002]
[1762287756777,0.20019619,99902.0,99882.0,0.0002]
[1762287757051,0.20019619,99902.0,99901.0,0.00037519]
[1762287757275,0.20019619,99902.0,99901.0,1e-08]
[1762287757507,0.22614284,99902.0,99901.0,1e-08]
[1762287758175,0.20019619,99902.0,99901.0,1e-08]
[1762287758400,0.22614441,99902.0,99901.0,1e-08]
[1762287758616,0.20019619,99902.0,99901.0,1e-08]
[1762287758832,0.20019619,99902.0,99901.0,4.001e-05]
[1762287759267,0.20019619,99902.0,99901.0,8.001e-05]
[1762287759623,0.20958085,99902.0,99901.0,0.00012001]
[1762287759825,0.20958085,99902.0,99901.0,0.00016001]
[1762287760041,0.20019619,99902.0,99901.0,0.00016001]
[1762287760203,0.20019619,99902.0,99901.0,0.00020001]
[1762287761060,0.20019329,99905.0,99901.0,0.00020001]
[1762287761270,0.20016213,99919.0,99901.0,0.00020001]
[1762287761463,0.34,99910.0,99901.0,0.00020001]
[1762287761842,0.010006,99940.0,99901.0,0.00020001]
[1762287762299,0.010006,99940.0,99902.0,0.08955669]
[1762287762515,0.20010205,99949.0,99903.0,0.00255002]
[1762287762735,0.00999999,99990.0,99902.0,0.08955669]
[1762287762736,0.010004,99960.0,99904.0,0.00263173]
[1762287762938,0.20006201,99969.0,99920.0,0.010008]
[1762287763082,0.21008417,99960.0,99921.0,0.00263127]
[1762287763278,0.20006201,99969.0,99922.0,0.00263124]
[1762287763511,0.010004,99960.0,99923.0,0.00263121]
[1762287763719,0.20013343,99934.0,99880.0,0.0002]
[1762287763932,0.010006,99940.0,99880.0,0.0002]
[1762287763933,0.20012207,99939.0,99903.0,0.08955669]
[1762287764149,0.010005,99950.0,99904.0,0.08955669]
[1762287764369,0.010007,99930.0,99888.0,0.08955669]
[1762287764581,0.20017967,99911.0,99880.0,0.0002]
[1762287764769,0.010007,99930.0,99880.0,0.0002]
[1762287764770,0.20018586,99908.0,99880.0,0.0002]
[1762287765007,0.010007,99930.0,99880.0,0.0002]
[1762287765008,0.20019588,99903.0,99880.0,0.0002]
[1762287765516,0.20019573,99903.0,99880.0,0.0002]
[1762287765918,0.20019573,99903.0,99901.0,0.00024001]
[1762287766171,0.20019619,99902.0,99901.0,0.00028001]
[1762287766465,0.20019416,99904.0,99901.0,0.00028001]
[1762287766685,0.00400937,99907.0,99901.0,0.00032001]
[1762287767133,0.00400937,99907.0,99901.0,0.00036001]
[1762287767336,0.00400937,99907.0,99901.0,0.00040001]
[1762287767550,0.05986388,99970.0,99904.0,0.08955669]
[1762287767754,0.01021201,99930.0,99910.0,0.04947]
[1762287767973,0.20009057,99955.0,99910.0,0.04947]
[1762287768182,0.20009057,99955.0,99904.0,0.08955669]
[1762287768183,0.03005709,99949.0,99911.0,0.20017815]
[1762287768447,0.03005709,99949.0,99922.0,0.08955669]
[1762287769091,0.03005709,99949.0,99923.0,0.08955669]
[1762287769530,0.03005709,99949.0,99910.0,0.059479]
[1762287769756,0.02594889,99965.0,99924.0,0.08955669]
[1762287769972,0.010002,99980.0,99930.0,0.04947]
[1762287770166,0.03005146,99969.0,99930.0,0.04947]
[1762287770402,0.03005146,99969.0,99941.0,0.08955669]
[1762287771028,0.20006201,99969.0,99930.0,0.04947]
[1762287771239,0.34,99950.0,99939.0,0.08955669]
[1762287771440,0.010003,99970.0,99939.0,0.08955669]
[1762287771655,0.00014573,99950.0,99939.0,0.08955669]
[1762287772118,0.00014573,99950.0,99940.0,0.04981647]
[1762287772618,0.00014573,99950.0,99941.0,0.03618228]
[1762287773084,0.00014573,99950.0,99940.0,0.04947]
[1762287773704,0.00014573,99950.0,99941.0,0.20011806]
[1762287773915,0.00014573,99950.0,99943.0,0.20011334]
[1762287774111,0.00014573,99950.0,99947.0,0.20010524]
[1762287774358,0.00014573,99950.0,99949.0,0.23628433]
[1762287774573,0.00014573,99950.0,99949.0,0.03618228]
[1762287774785,0.00014573,99950.0,99947.0,0.20010477]
[1762287775021,0.00014573,99950.0,99949.0,0.23628433]
[1762287775220,0.00014573,99950.0,99949.0,0.03618228]
[1762287776661,0.00014573,99950.0,99920.0,0.07340799]
[1762287776855,0.00014573,99950.0,99940.0,0.04947]
[1762287777536,0.00014573,99950.0,99941.0,0.03618228]
[1762287777954,0.00014573,99950.0,99930.0,0.04947]
[1762287778579,0.00014573,99950.0,99939.0,0.09006192]
[1762287778803,0.34014573,99950.0,99939.0,0.00050523]
[1762287779288,0.34,99940.0,99939.0,0.00050523]
[1762287779475,0.34014573,99950.0,99939.0,0.00050523]
[1762287780239,0.00014573,99950.0,99940.0,0.08955669]
[1762287780441,0.00014573,99950.0,99939.0,0.00050523]
[1762287780926,0.34,99943.0,99939.0,0.00050523]
[1762287781156,0.00014573,99950.0,99939.0,0.00050523]
[1762287781580,0.00014573,99950.0,99940.0,0.08955669]
[1762287781779,0.03005277,99949.0,99940.0,0.08955669]
[1762287781978,9.089e-05,99950.0,99940.0,0.08955669]
[1762287782188,9.089e-05,99950.0,99940.0,0.04947]
[1762287782388,9.089e-05,99950.0,99941.0,0.00046429]
[1762287782625,9.089e-05,99950.0,99942.0,0.08955669]
[1762287782797,9.089e-05,99950.0,99943.0,0.03684615]
[1762287783030,9.089e-05,99950.0,99949.0,0.03618228]
[1762287783245,9.089e-05,99950.0,99949.0,0.00066383]
[1762287783451,9.089e-05,99950.0,99930.0,0.04947]
[1762287783657,9.089e-05,99950.0,99943.0,0.08955669]
[1762287783883,9.089e-05,99950.0,99944.0,0.00788999]
[1762287784087,9.089e-05,99950.0,99931.0,0.03618228]
[1762287784088,9.089e-05,99950.0,99945.0,0.08955669]
[1762287784607,9.089e-05,99950.0,99940.0,0.04947]
[1762287785019,9.089e-05,99950.0,99901.0,0.00044]
[1762287785259,9.089e-05,99950.0,99901.0,0.04917]
[1762287785664,9.089e-05,99950.0,99910.0,0.04947]
[1762287785992,0.34,99941.0,99902.0,0.08955669]
[1762287786153,0.34,99945.0,99911.0,0.00707486]
[1762287786953,9.089e-05,99950.0,99930.0,0.04947]
[1762287787155,9.089e-05,99950.0,99941.0,0.08955669]
[1762287787341,0.20001534,99993.0,99941.0,0.08955669]
[1762287787541,0.00048688,99993.0,99956.0,0.08955669]
[1762287787782,0.03004023,99992.0,99960.0,0.059474]
[1762287787983,0.00048688,99993.0,99972.0,0.08955669]
[1762287788184,0.00048688,99993.0,99984.0,0.20003071]
[1762287788383,0.00048688,99993.0,99990.0,0.04947]
[1762287788592,0.00048688,99993.0,99991.0,0.00158913]
[1762287788837,0.00048688,99993.0,99992.0,0.03618228]
[1762287789218,0.00048688,99993.0,99992.0,0.23619828]
[1762287789357,0.00048688,99993.0,99992.0,0.32575497]
[1762287790106,0.00048688,99993.0,99992.0,0.03618228]
[1762287790295,0.00048688,99993.0,99990.0,0.04947]
[1762287790494,0.00048688,99993.0,99992.0,0.08955669]
[1762287790669,0.00048688,99993.0,99992.0,0.08959669]
[1762287790872,0.00048688,99993.0,99992.0,0.12577897]
[1762287791071,0.00048688,99993.0,99992.0,4e-05]
[1762287791271,0.34048688,99993.0,99992.0,8e-05]
[1762287791453,0.00048688,99993.0,99992.0,8e-05]
[1762287791660,0.00048688,99993.0,99992.0,0.00012]
[1762287792128,0.00048688,99993.0,99992.0,0.00016]
[1762287793445,0.00048688,99993.0,99992.0,0.00045088]
[1762287793683,0.00048688,99993.0,99992.0,0.00095616]
[1762287793876,0.00048688,99993.0,99992.0,0.03684756]
[1762287794367,0.0004,100050.0,100020.0,0.009998]
[1762287794574,0.0305696,100050.0,100030.0,0.12904228]
[1762287794770,0.00054605,100050.0,100030.0,0.38320725]
[1762287794903,0.00054605,100050.0,100040.0,0.12573897]
[1762287795118,0.00054605,100050.0,100040.0,0.09431173]
[1762287795315,0.00054605,100050.0,100040.0,0.00050527]
[1762287796268,0.34054605,100050.0,100040.0,0.01046101]
[1762287796468,0.34054605,100050.0,100040.0,0.01050101]
[1762287797039,0.00054605,100050.0,100040.0,0.01054101]
[1762287797241,0.00054605,100050.0,100040.0,0.42906001]
[1762287797460,0.00054605,100050.0,100040.0,0.22917998]
[1762287797866,0.00054605,100050.0,100040.0,0.1001377]
[1762287798068,0.00054605,100050.0,100040.0,0.47857001]
[1762287798270,0.00054605,100050.0,100040.0,0.27864997]
[1762287798487,0.00054605,100050.0,100040.0,0.10013769]
[1762287798693,0.34054605,100050.0,100040.0,0.10013769]
[1762287799279,0.34054605,100050.0,100040.0,0.010581]
[1762287799691,0.00054605,100050.0,100040.0,0.38901331]
[1762287799940,0.00054605,100050.0,100040.0,0.47857]
[1762287800140,8e-05,100080.0,100070.0,0.23604237]
[1762287800347,8e-05,100080.0,100070.0,0.3850248]
[1762287800545,8e-05,100080.0,100070.0,0.47839005]
[1762287800743,0.20012193,100140.0,100090.0,0.03618228]
[1762287800974,0.20012193,100140.0,100100.0,0.04947]
[1762287800975,0.01131635,100130.0,100100.0,0.04947]
[1762287801148,0.004887,100140.0,100110.0,0.00022053]
[1762287801375,0.00088649,100140.0,100110.0,0.21994336]
[1762287801579,0.00088649,100140.0,100120.0,0.09286]
[1762287801779,0.00088649,100140.0,100130.0,0.09297361]
[1762287802062,0.00088649,100140.0,100130.0,0.15242935]
[1762287802270,0.00088649,100140.0,100130.0,0.29134243]
[1762287802471,0.00088649,100140.0,100130.0,0.04613802]
[1762287802876,0.00088649,100140.0,100130.0,0.15231574]
[1762287803081,0.00088649,100140.0,100130.0,0.52726504]
[1762287803290,0.00088649,100140.0,100130.0,0.32756471]
[1762287804019,0.00088649,100140.0,100130.0,0.32760471]
[1762287804228,0.00088649,100140.0,100130.0,0.27813471]
[1762287804370,0.00088649,100140.0,100130.0,0.52738504]
[1762287804578,0.0004,100170.0,100160.0,0.04947]
[1762287804774,0.0004,100170.0,100160.0,0.05942574]
[1762287804775,0.00054599,100170.0,100160.0,0.05942574]
[1762287804976,0.34,100150.0,100130.0,0.00012]
[1762287805174,0.34,100150.0,100080.0,0.00050515]
[1762287805175,0.5397776,100120.0,100080.0,0.00050515]
[1762287805376,0.34,100100.0,100080.0,0.04997515]
[1762287805785,0.34,100100.0,100090.0,0.08955669]
[1762287806076,0.20975597,100150.0,100100.0,0.08565228]
[1762287806077,0.34,100120.0,100100.0,0.08565228]
[1762287806281,0.00014585,100120.0,100110.0,0.26806897]
[1762287806888,0.34014585,100120.0,100110.0,0.26806897]
[1762287807094,0.34014585,100120.0,100110.0,0.41837921]
[1762287807095,0.00014585,100120.0,100110.0,0.41837921]
[1762287807291,0.0004,100170.0,100120.0,0.24593022]
[1762287807490,0.00054577,100170.0,100160.0,0.08955669]
[1762287808207,0.00054577,100170.0,100160.0,0.09484212]
[1762287808559,0.00054577,100170.0,100140.0,0.18241669]
[1762287808811,0.34,100160.0,100140.0,0.13902669]
[1762287808950,0.34,100130.0,100110.0,0.08955669]
[1762287809160,0.34,100120.0,100110.0,0.08955669]
[1762287809383,0.34,100120.0,100090.0,0.09006179]
[1762287809384,0.34,100110.0,100090.0,0.09006179]
[1762287809590,0.34,100100.0,100090.0,0.13953179]
[1762287809752,0.19976056,100120.0,100090.0,0.09006179]
[1762287809959,0.34,100100.0,100090.0,0.09006179]
[1762287810200,0.34,100100.0,100090.0,0.09054828]
[1762287810959,0.34,100100.0,100090.0,0.00099159]
[1762287811851,0.53980019,100100.0,100090.0,0.00099159]
[1762287812178,0.34,100100.0,100090.0,0.00099159]
[1762287812438,0.53980019,100100.0,100090.0,0.00099159]
[1762287813005,0.23975318,100120.0,100110.0,0.04947]
[1762287813006,0.03000448,100120.0,100110.0,0.04947]
[1762287813230,0.33966416,100170.0,100120.0,0.08565228]
[1762287813456,0.199687,100160.0,100120.0,0.08565228]
[1762287813842,0.24956114,100170.0,100120.0,0.12801228]
[1762287814078,0.0499,100170.0,100120.0,0.67775999]
[1762287814296,0.0004,100170.0,100150.0,0.08955669]
[1762287814669,0.0004,100170.0,100110.0,0.3861]
[1762287814670,0.2491816,100160.0,100110.0,0.3861]
[1762287814845,0.01038302,100170.0,100110.0,0.3861]
[1762287814846,0.25954548,100170.0,100140.0,0.08955669]
[1762287815045,0.34,100150.0,100120.0,0.17520897]
[1762287815260,0.34,100130.0,100120.0,0.08955669]
[1762287815466,0.34,100130.0,100120.0,0.09004318]
[1762287815635,0.34,100130.0,100120.0,0.00048649]
[1762287815850,0.58924033,100130.0,100120.0,0.00048649]
[1762287818239,0.19978024,100110.0,100100.0,0.00050506]
[1762287818389,0.34,100070.0,100040.0,0.06823572]
[1762287818589,0.34,100050.0,100040.0,0.0002]
[1762287818775,0.34,100050.0,100040.0,0.00115987]
[1762287818984,0.58940004,100050.0,100040.0,0.0002]
[1762287819212,0.61943059,100050.0,100040.0,0.0002]
[1762287819411,0.34,100010.0,100000.0,0.04947]
[1762287819611,0.34,100010.0,100000.0,0.04961585]
[1762287819856,0.03043,100070.0,100020.0,0.20994913]
[1762287820051,0.03043,100070.0,100050.0,0.08955669]
[1762287820052,0.07973,100070.0,100050.0,0.08955669]
[1762287820203,0.07973,100070.0,100050.0,0.01072409]
[1762287820436,0.0493,100060.0,100040.0,0.00968633]
[1762287820625,0.0493,100060.0,100010.0,0.08955669]
[1762287820626,0.34,100020.0,100010.0,0.08955669]
[1762287820865,0.34,100020.0,99985.0,0.09343]
[1762287821065,0.34,100030.0,99990.0,0.04947]
[1762287821310,0.20989545,100050.0,99990.0,0.04947]
[1762287821311,0.34,100000.0,99992.0,0.00042585]
[1762287821512,0.34,100020.0,100010.0,0.08955669]
[1762287821672,0.34,100020.0,100000.0,0.04947]
[1762287821673,0.34,100010.0,100000.0,0.04947]
[1762287822559,0.34,100000.0,99992.0,0.00042585]
[1762287822765,0.34,99999.0,99992.0,0.00042585]
[1762287823334,0.3395,99999.0,99992.0,0.00042585]
[1762287823747,0.0493,100020.0,99992.0,0.00042585]
[1762287823942,0.0493,100030.0,99992.0,0.00042585]
[1762287824144,0.20991672,100040.0,99992.0,0.00042585]
[1762287824368,0.0493,100030.0,99992.0,0.00042585]
[1762287824566,0.25923775,100030.0,99992.0,0.00042585]
[1762287824727,0.00028647,100020.0,99992.0,0.00042585]
[1762287824931,0.0495,100020.0,99992.0,0.00042585]
[1762287825314,0.0495,100020.0,99992.0,0.00046585]
[1762287825315,0.34,99999.0,99992.0,0.00046585]
[1762287825542,0.02475,100030.0,100000.0,0.25946557]
[1762287825738,0.0495,100040.0,100020.0,0.08955669]
[1762287825950,0.02475,100050.0,100020.0,0.08955669]
[1762287826187,0.07425,100050.0,100030.0,0.00705019]
[1762287826394,0.07425,100050.0,100020.0,0.29951307]
[1762287826601,0.009993,100070.0,100030.0,0.05652009]
[1762287826602,0.0495,100040.0,100030.0,0.05652009]
[1762287826750,0.0495,100040.0,99992.0,0.0004]
[1762287826751,0.20995028,100030.0,99992.0,0.0004]
[1762287826952,0.34,100010.0,99992.0,0.0004]
[1762287827151,0.34,99999.0,99992.0,0.0004]
[1762287827351,0.34,99999.0,99992.0,0.00054585]
[1762287828225,0.36475,99993.0,99992.0,0.00054585]
[1762287829226,0.02475,99993.0,99992.0,0.00054585]
[1762287830282,0.34,99999.0,99992.0,0.00054585]
[1762287830479,0.34,99999.0,99993.0,0.08955669]
[1762287830817,0.36040522,100040.0,99993.0,0.08955669]
[1762287830818,0.16380669,100040.0,99993.0,0.08955669]
[1762287830960,0.2597246,100030.0,99992.0,0.00058585]
[1762287831160,0.2597246,100030.0,99992.0,0.00062585]
[1762287831161,0.0248,99993.0,99992.0,0.00062585]
[1762287831947,0.34,99999.0,99992.0,0.00062585]
[1762287832571,0.34,99999.0,99993.0,0.08955669]
[1762287832802,0.0495,100020.0,99993.0,0.08955669]
[1762287833020,0.0495,100020.0,99992.0,0.00062585]
[1762287833021,0.07693,100020.0,99992.0,0.00062585]
[1762287833218,0.27689249,100020.0,99993.0,0.08955669]
[1762287833447,0.24953012,100010.0,99992.0,0.00062585]
[1762287833663,0.34,99999.0,99992.0,0.00062585]
[1762287834282,0.02475,100010.0,99993.0,0.08955669]
[1762287834473,0.34,99999.0,99993.0,0.08955669]
[1762287834636,0.07425,100010.0,99994.0,0.08955669]
[1762287834843,0.34,100010.0,99994.0,0.08955669]
[1762287835051,0.02734,100020.0,100000.0,0.04947]
[1762287835406,0.24942102,100040.0,100010.0,0.09309215]
[1762287835407,0.07662,100040.0,100010.0,0.09309215]
[1762287835647,0.3895,100030.0,100010.0,0.00353546]
[1762287835838,0.0495,100030.0,100010.0,0.00353546]
[1762287836067,0.28682034,100050.0,100010.0,0.00353546]
[1762287836210,0.2494206,100040.0,100010.0,0.14256215]
[1762287836412,0.23732034,100050.0,100030.0,0.08955669]
[1762287836413,0.07684,100050.0,100030.0,0.08955669]
[1762287836632,0.0495,100070.0,100030.0,0.29949258]
[1762287836829,0.02739,100080.0,100040.0,0.3033457]
[1762287837029,0.02734,100100.0,100060.0,0.04947]
[1762287837210,0.22714898,100100.0,100070.0,0.00167874]
[1762287837437,0.07684,100100.0,100070.0,0.00267799]
[1762287837606,0.0773258,100100.0,100070.0,0.00267799]
[1762287837809,0.0773258,100100.0,100070.0,0.05214799]
[1762287837810,0.0772958,100100.0,100070.0,0.05214799]
[1762287838073,0.04947,100090.0,100070.0,0.00267799]
[1762287838226,0.0278258,100100.0,100060.0,0.14170468]
[1762287838413,0.0278258,100100.0,100080.0,0.08955669]
[1762287838618,0.0278258,100100.0,100080.0,0.09223387]
[1762287838817,0.0278258,100100.0,100090.0,0.00267691]
[1762287839051,0.0772958,100100.0,100070.0,0.00330499]
[1762287839253,0.0278258,100100.0,100080.0,0.08955669]
[1762287839465,0.0278258,100100.0,100080.0,0.09286134]
[1762287839823,0.0278258,100100.0,100090.0,0.05277431]
[1762287840036,0.0004858,100100.0,100090.0,0.05277431]
[1762287840436,0.0004858,100100.0,100090.0,0.04947]
[1762287840637,0.0004858,100100.0,100080.0,0.08955669]
[1762287840846,0.3404858,100100.0,100080.0,0.13902669]
[1762287841040,0.0004858,100100.0,100080.0,0.13926292]
[1762287841463,0.0004858,100100.0,100080.0,0.14007879]
[1762287841672,0.0004858,100100.0,100090.0,0.05052199]
[1762287841896,0.0004858,100100.0,100090.0,0.04947]
[1762287842308,0.0499858,100100.0,100090.0,0.04947]
[1762287842615,0.0499858,100100.0,100060.0,0.13902669]
[1762287842817,0.25977785,100100.0,100060.0,0.13902669]
[1762287842960,0.58978785,100100.0,100060.0,0.13902669]
[1762287843190,0.34,100090.0,100080.0,0.08955669]
[1762287843401,0.34,100090.0,100080.0,0.13902669]
[1762287843640,0.0004858,100100.0,100080.0,0.41936655]
[1762287843839,0.0004858,100100.0,100090.0,0.24929016]
[1762287844240,0.0004858,100100.0,100090.0,0.04947]
[1762287844566,0.0004858,100100.0,100090.0,0.24929016]
[1762287844768,0.0004858,100100.0,100090.0,0.66943244]
[1762287844939,0.025,100160.0,100130.0,0.04947]
[1762287845145,0.025,100160.0,100110.0,0.03618228]
[1762287845146,0.19970044,100150.0,100110.0,0.03618228]
[1762287845327,0.34,100110.0,100070.0,0.013993]
[1762287845530,0.34,100110.0,100080.0,0.08955669]
[1762287845707,0.02729,100100.0,100080.0,0.08955669]
[1762287845909,0.07679,100100.0,100070.0,0.0003072]
[1762287846266,0.07679,100100.0,100080.0,0.08955669]
[1762287846480,0.58932042,100090.0,100080.0,0.0004858]
[1762287846671,0.58932016,100090.0,100080.0,0.0004858]
[1762287846872,0.3895,100090.0,100080.0,0.0004858]
[1762287847102,0.58932016,100090.0,100060.0,0.04997]
[1762287847247,0.5767631,100070.0,100010.0,0.20990406]
[1762287847464,0.04936,100060.0,100020.0,0.04997]
[1762287847663,0.04964647,100060.0,100020.0,0.25992484]
[1762287847864,0.04936,100060.0,100030.0,0.05671134]
[1762287848234,0.04936,100060.0,100030.0,0.01673834]
[1762287848407,0.04936,100060.0,100030.0,0.00674134]
[1762287848549,0.36691,100070.0,100030.0,0.06670834]
[1762287848752,0.04936,100060.0,100040.0,0.08955669]
[1762287848957,0.04936,100060.0,100030.0,0.00674134]
[1762287849150,0.34,100050.0,100020.0,0.33948349]
[1762287849351,0.34,100050.0,100030.0,0.00658679]
[1762287849559,0.34,100050.0,100030.0,0.05655679]
[1762287849960,0.34,100050.0,100040.0,0.08955669]